bitfinex/quotes_SOLUSD_20230404
["timestamp","ask_amount","ask_price","bid_price","bid_amount"]
[1680573922412,20.0,20.443,20.43,24.34074588]
[1680573922609,20.0,20.443,20.431,27.34074588]
[1680573922914,20.0,20.443,20.432,7.34074588]
[1680573923314,20.0,20.443,20.433,20.0]
[1680573926809,20.0,20.443,20.43,20.0]
[1680573927115,20.0,20.443,20.41,48.91]
[1680573927116,28.36,20.44,20.42,14.93010723]
[1680573927609,28.36,20.44,20.416,114.6288]
[1680573927610,20.0,20.438,20.416,114.6288]
[1680573927811,17.0,20.437,20.416,114.6288]
[1680573928008,20.0,20.436,20.416,114.6288]
[1680573928225,17.0,20.435,20.416,114.6288]
[1680573928426,20.0,20.434,20.416,114.6288]
[1680573928608,17.0,20.433,20.416,114.6288]
[1680573929119,17.0,20.433,20.417,125.5028]
[1680573929317,17.0,20.433,20.417,108.5028]
[1680573929616,20.0,20.432,20.417,108.5028]
[1680573929806,17.0,20.431,20.417,108.5028]
[1680573930521,20.0,20.429,20.417,108.5028]
[1680573930699,17.0,20.428,20.417,108.5028]
[1680573931016,17.0,20.429,20.417,108.5028]
[1680573932202,20.0,20.434,20.417,108.5028]
[1680573932510,17.0,20.433,20.417,115.84354588]
[1680573932816,17.0,20.435,20.417,115.84354588]
[1680573933005,20.0,20.434,20.417,115.84354588]
[1680573933316,17.0,20.433,20.417,115.84354588]
[1680573935515,20.0,20.432,20.417,115.84354588]
[1680573935714,17.0,20.431,20.417,115.84354588]
[1680573936022,17.0,20.431,20.417,108.5028]
[1680573937521,20.0,20.432,20.417,108.5028]
[1680573937728,17.0,20.431,20.417,108.5028]
[1680573938625,20.0,20.434,20.417,108.5028]
[1680573938814,17.0,20.433,20.417,108.5028]
[1680573943933,28.24,20.43,20.417,108.5028]
[1680573944229,17.0,20.429,20.417,108.5028]
[1680573944612,17.0,20.431,20.417,108.5028]
[1680573945421,20.0,20.43,20.417,108.5028]
[1680573945618,17.0,20.429,20.417,108.5028]
[1680573953632,17.0,20.431,20.417,108.5028]
[1680573956643,20.0,20.43,20.417,108.5028]
[1680573956826,17.0,20.429,20.417,108.5028]
[1680573958740,17.0,20.43,20.417,108.5028]
[1680573962048,45.36,20.43,20.417,108.5028]
[1680573968957,17.0,20.428,20.417,108.5028]
[1680573971539,20.0,20.427,20.417,108.5028]
[1680573971739,17.0,20.426,20.417,108.5028]
[1680573974745,17.0,20.428,20.417,108.5028]
[1680573979756,20.0,20.427,20.417,108.5028]
[1680573979955,17.0,20.426,20.417,108.5028]
[1680573980762,20.0,20.425,20.417,108.5028]
[1680573980949,17.0,20.424,20.417,108.5028]
[1680573986650,17.0,20.426,20.417,108.5028]
[1680573990849,20.0,20.425,20.417,108.5028]
[1680573991049,17.0,20.424,20.417,108.5028]
[1680573993268,17.0,20.424,20.409,7.34074588]
[1680573993472,20.0,20.423,20.402,110.5214]
[1680573993653,17.0,20.422,20.402,177.14349439]
[1680573993853,17.0,20.422,20.403,46.62209439]
[1680573994266,17.0,20.422,20.404,7.34074588]
[1680573995860,20.0,20.421,20.404,7.34074588]
[1680573996060,17.0,20.42,20.404,7.34074588]
[1680573996774,20.0,20.419,20.404,7.34074588]
[1680573996965,17.0,20.418,20.403,46.62209439]
[1680573997155,20.0,20.423,20.403,46.62209439]
[1680573997361,20.0,20.424,20.404,7.34074588]
[1680573997662,20.0,20.424,20.405,46.62209439]
[1680573997973,20.0,20.425,20.406,20.0]
[1680573998176,76.299,20.43,20.406,20.0]
[1680573998177,47.939,20.43,20.406,20.0]
[1680573998378,28.36,20.43,20.407,75.17764994]
[1680573998578,19.575,20.435,20.41,28.51]
[1680573998774,19.575,20.435,20.411,129.5487]
[1680573998775,20.0,20.434,20.411,129.5487]
[1680573998960,20.0,20.433,20.411,187.72634994]
[1680573999168,20.0,20.433,20.411,237.07705608]
[1680573999479,20.0,20.433,20.412,107.52835608]
[1680573999666,20.0,20.433,20.413,20.0]
[1680573999976,20.0,20.431,20.413,27.34074588]
[1680574000271,20.0,20.431,20.413,71.30070614]
[1680574001570,17.0,20.43,20.413,71.30070614]
[1680574002882,20.0,20.429,20.413,71.30070614]
[1680574003070,17.0,20.428,20.413,63.95996026]
[1680574004263,17.0,20.428,20.413,20.0]
[1680574004463,17.0,20.428,20.412,20.0]
[1680574004677,20.0,20.427,20.412,20.0]
[1680574004873,17.0,20.426,20.412,20.0]
[1680574007680,20.0,20.425,20.412,20.0]
[1680574007994,17.0,20.424,20.412,20.0]
[1680574012186,116.6122,20.427,20.412,20.0]
[1680574012664,116.6122,20.427,20.41,20.0]
[1680574013582,17.0,20.426,20.41,20.0]
[1680574014279,17.0,20.426,20.41,136.4844]
[1680574019188,37.0,20.426,20.41,136.4844]
[1680574019674,20.0,20.425,20.41,136.4844]
[1680574019875,17.0,20.424,20.41,136.4844]
[1680574021904,17.0,20.425,20.41,136.4844]
[1680574022490,17.0,20.426,20.41,136.4844]
[1680574022991,37.0,20.426,20.41,136.4844]
[1680574023502,17.0,20.426,20.41,136.4844]
[1680574024806,17.0,20.426,20.41,143.82514588]
[1680574027604,17.0,20.428,20.41,143.82514588]
[1680574028108,17.0,20.428,20.41,201.99863834]
[1680574028496,17.0,20.429,20.41,245.9585986]
[1680574029407,28.32,20.43,20.411,20.0]
[1680574029606,28.32,20.43,20.412,20.0]
[1680574031011,17.0,20.429,20.412,27.34074588]
[1680574033012,20.0,20.433,20.413,17.0]
[1680574033313,20.0,20.433,20.414,7.34074588]
[1680574033615,20.0,20.435,20.415,20.0]
[1680574034106,20.0,20.435,20.415,27.34074588]
[1680574034402,17.0,20.434,20.415,27.34074588]
[1680574034596,20.0,20.433,20.416,109.9243]
[1680574034799,17.0,20.432,20.416,109.9243]
[1680574035214,17.0,20.432,20.417,113.5353]
[1680574038216,20.0,20.433,20.417,113.5353]
[1680574038401,20.0,20.435,20.417,113.5353]
[1680574038902,20.0,20.434,20.417,113.5353]
[1680574039109,20.0,20.433,20.417,113.5353]
[1680574039310,28.36,20.43,20.417,113.5353]
[1680574039616,17.0,20.429,20.417,113.5353]
[1680574056037,20.0,20.428,20.417,113.5353]
[1680574056223,17.0,20.427,20.417,113.5353]
[1680574062232,20.0,20.428,20.417,113.5353]
[1680574062432,17.0,20.427,20.417,113.5353]
[1680574066442,20.0,20.428,20.417,113.5353]
[1680574066644,17.0,20.427,20.417,113.5353]
[1680574069431,17.0,20.428,20.417,113.5353]
[1680574069731,17.0,20.429,20.417,113.5353]
[1680574071145,40.0,20.435,20.417,113.5353]
[1680574071546,20.0,20.433,20.417,113.5353]
[1680574071953,20.0,20.435,20.417,113.5353]
[1680574073950,20.0,20.434,20.417,113.5353]
[1680574074138,20.0,20.433,20.417,113.5353]
[1680574074535,17.0,20.432,20.417,113.5353]
[1680574079048,20.0,20.431,20.417,113.5353]
[1680574079243,20.0,20.429,20.417,113.5353]
[1680574079552,17.0,20.428,20.417,113.5353]
[1680574080049,17.0,20.43,20.417,113.5353]
[1680574080347,17.0,20.432,20.417,113.5353]
[1680574081750,31.6244598,20.432,20.417,113.5353]
[1680574087154,22.83,20.43,20.417,113.5353]
[1680574087338,17.0,20.429,20.417,113.5353]
[1680574102871,36.90858349,20.429,20.417,113.5353]
[1680574103167,16.90858349,20.429,20.417,113.5353]
[1680574103548,22.83,20.43,20.417,113.5353]
[1680574103754,20.0,20.433,20.417,113.5353]
[1680574103949,20.0,20.437,20.42,22.61]
[1680574104269,20.0,20.438,20.42,22.61]
[1680574104454,14.92396686,20.444,20.421,107.88770614]
[1680574104651,20.0,20.448,20.422,20.0]
[1680574104851,20.0,20.447,20.423,37.0]
[1680574105171,20.0,20.447,20.423,88.30070614]
[1680574105353,20.0,20.447,20.424,125.93234588]
[1680574105554,20.0,20.447,20.425,20.0]
[1680574105758,20.0,20.447,20.425,27.34074588]
[1680574106466,39.563,20.447,20.425,27.34074588]
[1680574106962,37.0,20.446,20.425,27.34074588]
[1680574107159,20.0,20.445,20.425,27.34074588]
[1680574107361,17.0,20.444,20.425,27.34074588]
[1680574107674,20.0,20.443,20.425,27.34074588]
[1680574107886,17.0,20.442,20.425,27.34074588]
[1680574112350,17.0,20.442,20.425,7.34074588]
[1680574122765,17.0,20.442,20.426,20.0]
[1680574123081,17.0,20.442,20.426,27.34074588]
[1680574123582,17.0,20.442,20.427,112.2085]
[1680574123960,20.0,20.443,20.428,20.0]
[1680574124182,17.0,20.442,20.428,20.0]
[1680574124985,17.0,20.442,20.427,112.2085]
[1680574141997,20.0,20.443,20.427,112.2085]
[1680574142302,17.0,20.442,20.427,119.54924588]
[1680574144305,20.0,20.443,20.427,119.54924588]
[1680574144491,20.0,20.443,20.428,17.0]
[1680574145894,14.72960448,20.445,20.428,17.0]
[1680574146202,37.0,20.444,20.428,17.0]
[1680574146399,17.0,20.444,20.429,20.0]
[1680574146581,20.0,20.443,20.429,20.0]
[1680574146781,20.0,20.448,20.43,35.60074588]
[1680574146986,20.0,20.448,20.431,37.0]
[1680574147200,20.0,20.448,20.432,20.0]
[1680574147398,20.0,20.448,20.433,17.0]
[1680574147598,117.1458,20.449,20.433,37.0]
[1680574147803,117.1458,20.449,20.433,44.34074588]
[1680574148108,117.1458,20.449,20.435,20.0]
[1680574148288,19.553,20.457,20.436,17.0]
[1680574148488,20.0,20.455,20.436,17.0]
[1680574148793,20.0,20.454,20.436,17.0]
[1680574148995,20.0,20.453,20.436,17.0]
[1680574150110,17.0,20.452,20.436,17.0]
[1680574153805,20.0,20.453,20.436,17.0]
[1680574154004,20.0,20.456,20.436,17.0]
[1680574154208,17.0,20.455,20.436,17.0]
[1680574154400,20.0,20.454,20.436,17.0]
[1680574154600,17.0,20.453,20.436,17.0]
[1680574157193,20.0,20.454,20.436,17.0]
[1680574157412,17.0,20.453,20.436,17.0]
[1680574157611,17.0,20.454,20.436,17.0]
[1680574157814,20.0,20.453,20.436,17.0]
[1680574159502,17.0,20.452,20.435,7.34074588]
[1680574159694,17.0,20.452,20.433,20.0]
[1680574160326,17.0,20.452,20.433,27.34074588]
[1680574160616,17.0,20.452,20.433,41.823297]
[1680574160997,17.0,20.452,20.434,17.0]
[1680574161203,17.0,20.452,20.435,20.0]
[1680574162910,17.0,20.452,20.436,17.0]
[1680574163311,17.0,20.452,20.437,20.0]
[1680574164111,34.30983075,20.457,20.438,20.0]
[1680574164413,17.0,20.456,20.438,27.34074588]
[1680574164604,34.30983075,20.457,20.438,27.34074588]
[1680574164805,34.30983075,20.457,20.44,28.23]
[1680574164999,34.30983075,20.457,20.441,20.0]
[1680574166121,17.0,20.456,20.441,20.0]
[1680574177222,14.5,20.456,20.441,20.0]
[1680574181132,14.75683075,20.457,20.441,20.0]
[1680574181427,138.8527,20.46,20.442,17.0]
[1680574181633,37.0,20.459,20.443,20.0]
[1680574182311,17.0,20.459,20.443,20.0]
[1680574182935,37.0,20.459,20.443,20.0]
[1680574184135,20.0,20.458,20.441,20.0]
[1680574184339,17.0,20.457,20.441,20.0]
[1680574184530,20.0,20.456,20.441,20.0]
[1680574185132,17.0,20.455,20.441,20.0]
[1680574187928,17.0,20.457,20.441,20.0]
[1680574189628,20.0,20.459,20.442,17.0]
[1680574189829,17.0,20.458,20.442,17.0]
[1680574190148,20.0,20.459,20.443,20.0]
[1680574191545,17.0,20.458,20.443,20.0]
[1680574192039,17.0,20.458,20.441,20.0]
[1680574197647,20.0,20.458,20.441,20.0]
[1680574197837,17.0,20.457,20.441,20.0]
[1680574204556,20.0,20.456,20.441,20.0]
[1680574204737,17.0,20.455,20.441,20.0]
[1680574212361,17.0,20.455,20.441,20.0]
[1680574213148,17.0,20.455,20.441,16.5]
[1680574215252,17.0,20.457,20.441,16.5]
[1680574215959,20.0,20.456,20.438,65.51423834]
[1680574216163,22.69,20.45,20.433,34.04073112]
[1680574216364,20.0,20.449,20.433,19.55818]
[1680574216662,17.0,20.448,20.433,19.55818]
[1680574217860,17.0,20.448,20.433,26.89892588]
[1680574218046,17.0,20.448,20.433,7.34074588]
[1680574229875,17.0,20.448,20.432,14.84295995]
[1680574230077,17.0,20.448,20.433,20.0]
[1680574230776,17.0,20.448,20.432,27.34074588]
[1680574235873,20.0,20.447,20.432,27.34074588]
[1680574236068,17.0,20.446,20.432,27.34074588]
[1680574238271,17.0,20.447,20.432,27.34074588]
[1680574238966,117.1409,20.449,20.432,27.34074588]
[1680574239168,117.1409,20.449,20.433,7.34074588]
[1680574239367,117.1409,20.449,20.432,72.94486218]
[1680574239785,117.1409,20.449,20.433,7.34074588]
[1680574240488,17.0,20.448,20.433,7.34074588]
[1680574247996,37.0,20.448,20.433,7.34074588]
[1680574248912,17.0,20.448,20.433,7.34074588]
[1680574263925,117.1409,20.449,20.433,7.34074588]
[1680574264320,17.0,20.448,20.433,7.34074588]
[1680574269714,117.1409,20.449,20.433,7.34074588]
[1680574269913,117.1409,20.449,20.434,37.0]
[1680574270417,117.1409,20.449,20.435,7.34074588]
[1680574270607,117.1409,20.449,20.437,20.0]
[1680574272122,117.1409,20.449,20.438,17.0]
[1680574274829,158.98198586,20.46,20.441,20.0]
[1680574275013,158.98198586,20.46,20.442,37.0]
[1680574275014,116.1627,20.46,20.442,37.0]
[1680574275609,116.1627,20.46,20.443,20.0]
[1680574275829,116.1627,20.46,20.444,17.0]
[1680574276423,17.0,20.459,20.444,17.0]
[1680574278326,116.1627,20.46,20.444,17.0]
[1680574278719,116.1627,20.46,20.445,20.0]
[1680574279032,116.1627,20.46,20.446,17.0]
[1680574283535,116.1627,20.46,20.443,20.0]
[1680574283836,116.1627,20.46,20.445,20.0]
[1680574284133,116.1627,20.46,20.446,17.0]
[1680574287541,20.0,20.467,20.45,28.41]
[1680574287738,20.0,20.467,20.451,37.0]
[1680574288039,20.0,20.467,20.451,44.34074588]
[1680574288630,20.0,20.467,20.452,20.0]
[1680574288831,20.0,20.467,20.453,17.0]
[1680574289042,20.0,20.467,20.451,147.16254588]
[1680574289242,20.0,20.467,20.452,17.0]
[1680574289545,20.0,20.467,20.453,20.0]
[1680574296642,19.539,20.472,20.453,20.0]
[1680574296826,17.0,20.47,20.453,20.0]
[1680574302440,17.0,20.47,20.454,17.0]
[1680574306245,17.0,20.47,20.455,17.0]
[1680574306472,137.8351,20.474,20.455,17.0]
[1680574306639,137.8351,20.474,20.454,17.0]
[1680574306954,137.8351,20.474,20.455,20.0]
[1680574307243,137.8351,20.474,20.456,17.0]
[1680574310737,137.8351,20.474,20.455,17.0]
[1680574310938,137.8351,20.474,20.456,20.0]
[1680574311144,137.8351,20.474,20.457,17.0]
[1680574311550,137.8351,20.474,20.46,28.41]
[1680574314641,117.8351,20.474,20.46,28.41]
[1680574322070,117.8351,20.474,20.457,17.0]
[1680574322242,117.8351,20.474,20.456,17.0]
[1680574322646,117.8351,20.474,20.457,20.0]
[1680574322946,15.03257712,20.478,20.46,28.29]
[1680574323145,15.03257712,20.478,20.461,17.0]
[1680574327144,15.03257712,20.478,20.454,14.35850338]
[1680574327451,34.56557712,20.478,20.455,17.0]
[1680574327646,34.56557712,20.478,20.454,17.0]
[1680574327847,20.0,20.477,20.454,17.0]
[1680574328147,20.0,20.477,20.455,20.0]
[1680574328344,20.0,20.477,20.456,17.0]
[1680574329670,34.56557712,20.478,20.456,17.0]
[1680574335558,20.0,20.477,20.456,17.0]
[1680574335758,34.56557712,20.478,20.456,17.0]
[1680574335980,20.0,20.477,20.456,17.0]
[1680574336159,34.56557712,20.478,20.456,17.0]
[1680574336359,20.0,20.477,20.456,17.0]
[1680574336877,20.0,20.477,20.456,24.34074588]
[1680574337681,34.56557712,20.478,20.456,24.34074588]
[1680574340465,20.0,20.477,20.456,24.34074588]
[1680574341477,34.56557712,20.478,20.456,24.34074588]
[1680574343279,19.533,20.478,20.46,28.29]
[1680574343479,146.5264,20.48,20.46,28.29]
[1680574343480,146.5264,20.48,20.461,37.0]
[1680574343780,118.1164,20.48,20.461,44.34074588]
[1680574343990,118.1164,20.48,20.462,20.0]
[1680574344189,118.1164,20.48,20.463,37.0]
[1680574347885,118.1164,20.48,20.463,20.0]
[1680574348195,118.1164,20.48,20.464,17.0]
[1680574358795,20.0,20.479,20.464,17.0]
[1680574359002,118.1164,20.48,20.464,17.0]
[1680574359680,118.1164,20.48,20.463,20.0]
[1680574359877,20.0,20.479,20.461,20.0]
[1680574360195,20.0,20.479,20.462,17.0]
[1680574360393,20.0,20.479,20.463,20.0]
[1680574360983,118.1164,20.48,20.463,20.0]
[1680574365000,118.1164,20.48,20.464,17.0]
[1680574376511,117.93060255,20.471,20.464,17.0]
[1680574400320,117.93060255,20.471,20.465,20.0]
[1680574400511,117.93060255,20.471,20.466,17.0]
[1680574401410,117.93060255,20.471,20.464,17.0]
[1680574403114,117.93060255,20.471,20.463,20.0]
[1680574403302,20.0,20.47,20.461,20.0]
[1680574405021,117.93060255,20.471,20.461,20.0]
[1680574408631,117.93060255,20.471,20.456,14.74070447]
[1680574408932,117.93060255,20.471,20.452,119.7498]
[1680574409118,20.0,20.47,20.451,19.558]
[1680574410018,20.0,20.47,20.452,17.0]
[1680574410423,20.0,20.47,20.455,22.72]
[1680574410622,20.0,20.47,20.456,17.0]
[1680574415026,17.0,20.469,20.455,22.72]
[1680574415229,20.0,20.468,20.455,22.72]
[1680574415730,20.0,20.466,20.455,22.72]
[1680574416024,17.0,20.465,20.455,22.72]
[1680574416628,20.0,20.468,20.455,22.72]
[1680574417832,20.0,20.469,20.455,22.72]
[1680574418214,48.4,20.47,20.455,22.72]
[1680574418422,17.0,20.469,20.455,22.72]
[1680574419436,20.0,20.468,20.45,28.24]
[1680574419620,20.0,20.468,20.451,37.0]
[1680574421434,17.0,20.469,20.451,37.0]
[1680574421735,37.0,20.47,20.451,37.0]
[1680574422126,20.0,20.469,20.451,37.0]
[1680574424136,19.535,20.476,20.451,37.0]
[1680574424541,37.0,20.47,20.451,37.0]
[1680574425040,17.0,20.47,20.451,37.0]
[1680574426343,17.0,20.47,20.452,20.0]
[1680574426539,17.0,20.47,20.453,37.0]
[1680574426723,19.535,20.476,20.453,37.0]
[1680574432257,94.33730727,20.478,20.453,44.34074588]
[1680574432548,48.54980219,20.478,20.453,44.34074588]
[1680574432845,48.54980219,20.478,20.454,20.0]
[1680574433034,48.54980219,20.478,20.456,20.0]
[1680574433235,48.54980219,20.478,20.457,17.0]
[1680574436865,166.0574,20.48,20.461,20.0]
[1680574437160,166.0574,20.48,20.462,37.0]
[1680574438155,137.6474,20.48,20.462,37.0]
[1680574438747,118.1164,20.48,20.462,37.0]
[1680574446266,118.1164,20.48,20.463,20.0]
[1680574446468,118.1164,20.48,20.464,17.0]
[1680574448672,118.1164,20.48,20.465,20.0]
[1680574448852,117.6164,20.48,20.466,17.0]
[1680574450283,19.527,20.484,20.466,17.0]
[1680574453954,19.527,20.484,20.464,17.0]
[1680574456180,112.2143,20.482,20.464,17.0]
[1680574457578,17.0,20.481,20.463,17.0]
[1680574457784,20.0,20.48,20.463,17.0]
[1680574459867,37.0,20.481,20.463,17.0]
[1680574462885,17.0,20.481,20.463,17.0]
[1680574463681,112.2143,20.482,20.463,17.0]
[1680574463980,17.0,20.481,20.463,17.0]
[1680574464579,37.0,20.481,20.463,17.0]
[1680574465487,17.0,20.481,20.463,17.0]
[1680574465684,37.0,20.481,20.463,17.0]
[1680574466586,17.0,20.481,20.463,17.0]
[1680574469888,112.2143,20.482,20.463,17.0]
[1680574478078,20.0,20.48,20.463,17.0]
[1680574479391,17.0,20.481,20.463,17.0]
[1680574485493,37.0,20.481,20.463,17.0]
[1680574486390,17.0,20.481,20.463,17.0]
[1680574497791,37.0,20.481,20.463,17.0]
[1680574499108,17.0,20.481,20.463,17.0]
[1680574499604,22.69,20.48,20.462,20.0]
[1680574499813,17.0,20.479,20.461,20.0]
[1680574500109,20.0,20.478,20.461,20.0]
[1680574500305,17.0,20.477,20.461,20.0]
[1680574500993,20.0,20.476,20.461,20.0]
[1680574501396,20.0,20.478,20.461,20.0]
[1680574501709,17.0,20.477,20.461,20.0]
[1680574502003,17.0,20.477,20.462,17.0]
[1680574502205,17.0,20.477,20.463,20.0]
[1680574503792,20.0,20.479,20.463,20.0]
[1680574503993,20.0,20.479,20.464,17.0]
[1680574504516,22.69,20.48,20.464,17.0]
[1680574505399,17.0,20.479,20.464,17.0]
[1680574505602,22.69,20.48,20.464,17.0]
[1680574507200,20.0,20.484,20.464,17.0]
[1680574507400,17.0,20.481,20.464,17.0]
[1680574509513,37.0,20.481,20.463,20.0]
[1680574509814,37.0,20.481,20.464,17.0]
[1680574510015,37.0,20.481,20.462,17.0]
[1680574510319,37.0,20.481,20.463,20.0]
[1680574510499,37.0,20.481,20.464,17.0]
[1680574511114,17.0,20.481,20.464,17.0]
[1680574511616,37.0,20.481,20.464,17.0]
[1680574512015,20.0,20.48,20.464,17.0]
[1680574512197,17.0,20.479,20.464,17.0]
[1680574514520,17.0,20.479,20.463,20.0]
[1680574514738,17.0,20.479,20.464,17.0]
[1680574514908,17.0,20.48,20.463,17.0]
[1680574515209,17.0,20.48,20.462,17.0]
[1680574515410,17.0,20.48,20.463,20.0]
[1680574515711,17.0,20.48,20.464,17.0]
[1680574527326,37.0,20.481,20.464,17.0]
[1680574527621,17.0,20.481,20.464,17.0]
[1680574529827,37.0,20.481,20.464,17.0]
[1680574534533,17.0,20.481,20.464,17.0]
[1680574535346,167.15952647,20.485,20.464,17.0]
[1680574535631,113.6585,20.485,20.464,17.0]
[1680574535922,113.6585,20.485,20.465,20.0]
[1680574536126,113.6585,20.485,20.466,17.0]
[1680574537016,41.07220647,20.487,20.466,17.0]
[1680574539433,5.26272432,20.487,20.466,17.0]
[1680574539818,5.26272432,20.487,20.464,17.0]
[1680574541226,20.0,20.488,20.464,17.0]
[1680574541424,108.1439,20.485,20.464,17.0]
[1680574542031,108.1439,20.485,20.47,28.22]
[1680574542528,20.0,20.488,20.47,28.22]
[1680574543433,19.522,20.489,20.47,28.22]
[1680574543614,20.0,20.488,20.47,28.22]
[1680574545933,20.0,20.488,20.464,17.0]
[1680574546134,20.0,20.488,20.463,20.0]
[1680574546332,20.0,20.488,20.46,171.4478]
[1680574546333,36.53,20.481,20.461,20.0]
[1680574546733,19.533,20.478,20.461,20.0]
[1680574547038,17.0,20.477,20.461,20.0]
[1680574547439,20.0,20.476,20.461,20.0]
[1680574547621,17.0,20.475,20.461,20.0]
[1680574548039,20.0,20.474,20.461,20.0]
[1680574552422,17.0,20.475,20.461,20.0]
[1680574554928,16.0,20.475,20.461,20.0]
[1680574558226,20.0,20.474,20.459,20.0]
[1680574558428,20.0,20.472,20.459,20.0]
[1680574558830,17.0,20.471,20.459,20.0]
[1680574560942,17.0,20.471,20.457,37.0]
[1680574561245,20.0,20.47,20.457,37.0]
[1680574561434,17.0,20.469,20.457,37.0]
[1680574561752,20.0,20.47,20.457,37.0]
[1680574561944,17.0,20.469,20.457,37.0]
[1680574562645,17.0,20.469,20.451,112.3952]
[1680574562855,17.0,20.469,20.452,20.0]
[1680574563027,17.0,20.469,20.451,112.3952]
[1680574564450,17.0,20.469,20.452,20.0]
[1680574566849,115.7836,20.471,20.453,17.0]
[1680574567051,17.0,20.47,20.453,17.0]
[1680574569253,115.7836,20.471,20.453,17.0]
[1680574569563,115.7836,20.471,20.46,28.4]
[1680574570061,115.7836,20.471,20.461,20.0]
[1680574570951,115.388,20.481,20.462,17.0]
[1680574571155,34.14258272,20.486,20.463,20.0]
[1680574571365,34.14258272,20.486,20.465,20.0]
[1680574571543,14.61658272,20.486,20.466,17.0]
[1680574572145,20.0,20.476,20.466,17.0]
[1680574573564,20.0,20.476,20.465,17.0]
[1680574573955,20.0,20.476,20.464,17.0]
[1680574575962,20.0,20.476,20.463,20.0]
[1680574577968,17.0,20.475,20.463,20.0]
[1680574578359,20.0,20.474,20.463,20.0]
[1680574580273,17.0,20.475,20.463,20.0]
[1680574583062,20.0,20.476,20.463,20.0]
[1680574583572,28.4,20.48,20.463,20.0]
[1680574583877,17.0,20.479,20.463,20.0]
[1680574585483,20.0,20.478,20.463,20.0]
[1680574585663,17.0,20.477,20.463,20.0]
[1680574586966,20.0,20.476,20.463,20.0]
[1680574587170,17.0,20.475,20.463,20.0]
[1680574587370,17.0,20.475,20.457,113.6127]
[1680574587669,17.0,20.475,20.458,20.0]
[1680574587980,20.0,20.474,20.457,7.34074588]
[1680574588185,37.0,20.473,20.456,14.59774336]
[1680574588477,37.0,20.473,20.453,113.6127]
[1680574588984,20.0,20.472,20.453,113.6127]
[1680574589188,20.0,20.47,20.453,113.6127]
[1680574589382,20.0,20.47,20.454,17.0]
[1680574589588,17.0,20.469,20.454,17.0]
[1680574595363,17.0,20.469,20.453,113.6127]
[1680574596188,20.0,20.468,20.453,113.6127]